Cogmind - Beta 16.1 @@@ ROGUE MODE // 2026.03.12 @ 18:57:21 Player: IDRpheonix Result: Destroyed by S-27 Virus with Autogun Performance ------------- Evolutions (3) 1500 Regions Visited (6) 1200 Robots Destroyed (51) 255 Value Destroyed (1979) 1979 Prototype IDs (2) 40 Alien Tech Used (0) 0 Bonus (172) 172 TOTAL SCORE: 5146 Bonus ------- High Alert Combat Kills 81 Follower Combat Kills 91 Cogmind --------- Core Integrity 0/700 Matter 281/300 Energy 37/100 System Corruption 13% Temperature Cool (0) Movement Core (50) Location -7/Factory Parts ------- > --- POWER (2) -------- (None) > --- PROPULSION (3) --- (None) > --- UTILITY (5) ------ Advanced Weight Redist. System Advanced Visual Processing Unit Advanced Targeting Computer > --- WEAPON (3) ------- (None) > --- INVENTORY (5) ---- (None) Peak State ------------ > --- POWER ------------ Cooled Ion Engine Cooled Ion Engine > --- PROPULSION ------- Armored Treads Medium Treads Medium Treads > --- UTILITY ---------- Scrap Suit Improved Heat Sink Small Storage Unit Improved Shield Generator > --- WEAPON ----------- Particle Cannon Gauss Cannon Missile Launcher > --- INVENTORY -------- Cooled Ion Engine Medium Treads Advanced Weight Redist. System Advanced Visual Processing Unit Advanced Targeting Computer Power Shielding Improved Propulsion Shielding Improved Utility Shielding [Rating: 44] Favorites ----------- Power Cooled Ion Engine Engine Cooled Ion Engine Power Core Light Nuclear Core Propulsion Armored Treads Treads Armored Treads Utility Small Storage Unit Device Scrap Suit Storage Small Storage Unit Processor Advanced Targeting Computer Protection Power Shielding Weapon Particle Cannon Energy Gun Particle Gun Energy Cannon Particle Cannon Ballistic Gun Assault Rifle Ballistic Cannon Gauss Cannon Launcher Missile Launcher Impact Weapon Maul Slashing Weapon Katana Build | -11 -10 -10 -9 -9 -8 -7 ------- Run | Yrd Mat Min Mat Min Mat Fac Slots Evolved 6 | . . . 2 . 2 2 Power 1 | . . . . . 1 . Propulsion 1 | . . . . . 1 . Utility 3 | . . . 2 . . 1 Weapon 1 | . . . . . . 1 Parts Attached 39 | 6 . 1 5 1 7 19 Power 7 | 1 . . 2 . 1 3 Engine 5 | 1 . . 2 . 1 1 Core 2 | . . . . . . 2 Reactor . | . . . . . . . Propulsion 11 | 2 . . 1 . 4 4 Treads 11 | 2 . . 1 . 4 4 Leg . | . . . . . . . Wheel . | . . . . . . . Hover . | . . . . . . . Flight . | . . . . . . . Utility 13 | 1 . 1 1 . 2 8 Device 6 | . . 1 1 . 1 3 Storage 2 | 1 . . . . 1 . Processor 2 | . . . . . . 2 Hackware . | . . . . . . . Protection 3 | . . . . . . 3 Artifact . | . . . . . . . Weapon 8 | 2 . . 1 1 . 4 Energy Gun 4 | 1 . . 1 . . 2 Energy Cannon 1 | . . . . 1 . . Ballistic Gun 2 | 1 . . . . . 1 Ballistic Cannon . | . . . . . . . Launcher 1 | . . . . . . 1 Special Weapon . | . . . . . . . Impact Weapon . | . . . . . . . Slashing Weapon . | . . . . . . . Piercing Weapon . | . . . . . . . Special Melee Weapon . | . . . . . . . Unidentified Prototypes 2 | . . . 2 . . . Parts Lost 23 | . . . . 1 . 22 Power 4 | . . . . . . 4 Propulsion 4 | . . . . . . 4 Utility 8 | . . . . . . 8 Weapon 7 | . . . . 1 . 6 Highest Loss Streak 10 | . . . . 1 . 10 To Critical Strikes 1 | . . . . . . 1 Average Backups 6 | . . 1 4 7 7 6 Power 1 | . . . . 2 1 . Propulsion 1 | . . . 3 3 3 1 Utility 2 | . . 1 . . 1 4 Weapon . | . . . . 2 2 . Tool/Special . | . . . . . . . Unused Backups 14 | . . . . . 2 12 Power 2 | . . . . . 1 1 Propulsion 3 | . . . . . . 3 Utility 5 | . . . . . . 5 Weapon 4 | . . . . . 1 3 Tool/Special . | . . . . . . . Average Slot Usage (%) 84 | . 85 85 87 76 83 89 Engine 13 | . 14 14 11 11 18 12 Treads 20 | . 28 28 21 12 21 22 Device 19 | . . 5 22 22 17 20 Storage 8 | . 14 8 10 11 9 6 Protection 1 | . . . . . . 2 Energy Gun 4 | . 14 14 11 4 6 1 Energy Cannon 6 | . . . . 6 10 6 Ballistic Gun 2 | . 14 14 11 1 . 1 Ballistic Cannon 2 | . . . . . . 5 Launcher 2 | . . . . . . 5 Slashing Weapon 1 | . . . . 6 . . Peak Build Rating 44 | 6 6 13 20 20 33 44 Average Rating 27 | 4 6 8 16 19 30 36 On Entrance 13 | . 6 6 13 20 18 31 Avg Prop Armor Cover (%) 6 | . . . . . 6 . Naked Turns . | . . . . . . . Heaviest Build 111 | 14 14 14 23 24 111 47 Greatest Support 76 | 40 40 40 40 40 62 76 Greatest Overweight (x) 13 | . . . . 1 13 2 Average Overweight (x) . | . . . . . . . Largest Inventory Capacity 25 | 8 8 8 8 8 25 8 Average Capacity 8 | 7 8 6 7 8 12 7 Most Carried 9 | 4 1 5 7 8 9 8 Average Carried 6 | . . 1 4 7 7 6 Final Capacity 8 | 8 8 5 8 8 8 5 Final Carried 8 | . 1 5 7 8 8 . Scrap Suit Usage (%) 80 | . . 42 100 100 100 72 Parts Cannibalized 10 | . . 1 2 1 4 2 Class Distribution -------------------- 59% | Mutant 36% | Tank Dominant Class ---------------- Mutant | -10/Materials Mutant | -10/Mines Mutant | -9/Materials Mutant | -9/Mines Mutant | -8/Materials Tank | -7/Factory Resources | -11 -10 -10 -9 -9 -8 -7 ----------- Run | Yrd Mat Min Mat Min Mat Fac Matter Collected 1228 | 234 50 37 78 50 130 649 Remotely . | . . . . . . . Salvage Created 1872 | . 43 44 123 73 505 1084 Parts 89 | . 2 6 6 2 21 52 Haulers Intercepted 2 | . . . 1 . 1 . Recyclers Shooed 1 | . . . . 1 . . Parts Field Recycled . | . . . . . . . Retrieved Matter . | . . . . . . . Parts Self-Destructed . | . . . . . . . Prevented . | . . . . . . . Parts Restored . | . . . . . . . Kills | -11 -10 -10 -9 -9 -8 -7 ------- Run | Yrd Mat Min Mat Min Mat Fac Combat Hostiles Destroyed 44 | . 1 3 2 2 8 28 Guns 18 | . 1 3 2 1 4 7 Cannons 18 | . . . . 1 3 14 AOE 7 | . . . . . . 7 Classes Destroyed 12 | . 1 1 1 1 2 6 Tunneler 2 | . . . . . . 2 Hauler 2 | . . . 1 . 1 . Recycler 3 | . . . . . 2 1 Swarmer 10 | . . 3 . . 3 4 Grunt 15 | . 1 . 2 1 4 7 Brawler 1 | . . . . . . 1 Duelist 1 | . . . . 1 . . Protector 1 | . . . . . . 1 Sentry 4 | . . . . . 1 3 Specialist 3 | . . . . . . 3 Hunter 3 | . . . . . . 3 Programmer 6 | . . . . . . 6 Best Kill Streak 10 | . 1 3 2 1 3 10 Combat Bots Only 9 | . 1 3 1 1 3 9 Max Kills in Single Turn 7 | . 1 1 1 1 1 7 Gunslinging . | . . . . . . . Exploded 6 | . . . . . . 6 Melee . | . . . . . . . Uniques/NPCs Destroyed . | . . . . . . . Combat | -11 -10 -10 -9 -9 -8 -7 -------- Run | Yrd Mat Min Mat Min Mat Fac Hostile Shots Fired 487 | . 24 14 21 19 47 362 Missed 131 | . 5 3 5 4 5 109 Hits 356 | . 19 11 16 15 42 253 Melee 12 | . . . . 12 . . Projectile 344 | . 19 11 16 3 42 253 Critical Strikes 7 | . . . . 2 1 4 Actively Blocked 1 | . . . . . . 1 Damage Taken 4507 | . 213 86 184 421 342 3261 Core 944 | . 33 16 21 86 76 712 Absorbed by Shields 681 | . . . . . 140 541 Redirected to Shielding 252 | . . . . . . 252 Regen/Repaired (Parts) 83 | . . 1 14 10 39 19 Core Remaining (%) 84 | 100 . 80 . 73 86 . Volleys Fired 153 | . 9 8 16 13 27 80 Largest 3 | . 2 2 2 2 2 3 Hottest 163 | . 70 70 70 76 148 163 Shots Fired 314 | . 18 16 32 18 54 176 Gun 162 | . 18 16 32 17 16 63 Cannon 143 | . . . . 1 38 104 Launcher 9 | . . . . . . 9 Special . | . . . . . . . Kinetic 105 | . 9 8 16 5 . 67 Thermal 169 | . 9 8 16 13 54 69 Explosive 9 | . . . . . . 9 Electromagnetic 31 | . . . . . . 31 Robot Hit Streak 14 | . 3 3 4 3 4 14 Robot Miss Streak 5 | . 4 3 3 1 4 5 Penetration Max . | . . . . . . . Secondary Targets 3 | . . 2 . 1 . . Max Gunslinging Chain 1 | . . 1 . 1 . . Shots Hit Robots 179 | . 4 9 17 12 25 112 Core Hits 88 | . 1 3 7 2 16 59 Critical Kills 1 | . . . . . 1 . Critical Parts Destroyed . | . . . . . . . Critical Strikes 7 | . 1 . 1 . 1 4 Burn 2 | . 1 . 1 . . . Meltdown 1 | . . . . . 1 . Blast 4 | . . . . . . 4 Melee Attacks . | . . . . . . . Impact . | . . . . . . . Slashing . | . . . . . . . Piercing . | . . . . . . . Sneak Attacks . | . . . . . . . Combat Hostiles . | . . . . . . . Follow-up Attacks . | . . . . . . . Damage Inflicted 5279 | . 51 119 214 218 475 4202 Guns 1432 | . 51 119 214 192 137 719 Cannons 2014 | . . . . 21 338 1655 Explosions 1827 | . . . . . . 1827 Melee . | . . . . . . . Ramming 6 | . . . . 5 . 1 Kinetic 1417 | . 26 43 113 36 . 1199 Thermal 3172 | . 25 76 101 177 475 2318 Explosive 336 | . . . . . . 336 Electromagnetic 348 | . . . . . . 348 Impact . | . . . . . . . Slashing . | . . . . . . . Piercing . | . . . . . . . Highest Corruption 13 | . . . . . . 13 Average Corruption 4 | . . . . . . 4 Corruption Purged . | . . . . . . . Corruption Blocked . | . . . . . . . Effects 33 | . . . . . . 33 Message Errors 7 | . . . . . . 7 Matter Fused 10 | . . . . . . 10 Heat Flow Errors 4 | . . . . . . 4 Energy Discharges 1 | . . . . . . 1 Parts Rejected 2 | . . . . . . 2 Parts Fused 1 | . . . . . . 1 Data Loss (minor) 4 | . . . . . . 4 Data Loss (major) 2 | . . . . . . 2 Misfires 1 | . . . . . . 1 Misdirections 1 | . . . . . . 1 Overload Shots . | . . . . . . . Overflow Damage 233 | . . . . . . 233 Projectiles 44 | . . . . . . 44 Explosions 189 | . . . . . . 189 Melee . | . . . . . . . Knockbacks 4 | . . . . . . 4 Impact . | . . . . . . . Kinetic 2 | . . . . . . 2 Secondary 2 | . . . . . . 2 Self-Inflicted Damage 252 | . . . . . . 252 Shots 4 | . . . . . . 4 Rammed 6 | . . . . 4 . 2 Targets Rammed 6 | . . . . 4 . 2 Kicked . | . . . . . . . Crushed . | . . . . . . . Highest Temperature 421 | . 45 72 . . 421 330 Average Temperature 97 | . 15 37 . . 126 96 Received Heat Transfer 836 | . 114 . 87 18 121 496 Effects 2 | . . . . . 2 . Energy Bleed 1 | . . . . . 1 . Short Circuit 1 | . . . . . 1 . Siege Activations . | . . . . . . . Martial Activations . | . . . . . . . Shielding Activations . | . . . . . . . Robots Disrupted . | . . . . . . . Combat Hostiles . | . . . . . . . Robots Corrupted . | . . . . . . . Combat Hostiles . | . . . . . . . Parts Fried 1 | . . . . . . 1 Impact Corruptions . | . . . . . . . Robots Melted 1 | . . . . . 1 . Combat Hostiles 1 | . . . . . 1 . Parts Melted 6 | . . . . 1 3 2 Heat Transferred 4285 | . 148 222 370 370 951 2224 Parts Sabotaged . | . . . . . . . Parts Stolen . | . . . . . . . Parts Stripped . | . . . . . . . Power Chain Reactions . | . . . . . . . Alert | -11 -10 -10 -9 -9 -8 -7 ------- Run | Yrd Mat Min Mat Min Mat Fac Maximum Alert Level 2 | . . . . . . 2 Low Security (%) 88 | 100 100 100 100 100 100 72 Level 1 3 | . . . . . . 8 Level 2 7 | . . . . . . 18 Level 3 . | . . . . . . . Level 4 . | . . . . . . . Level 5 . | . . . . . . . High Security . | . . . . . . . Max Security . | . . . . . . . Peak Influence 550 | . 20 60 42 30 182 550 Initial 52 | . . . 19 . . 52 Average 68 | . 2 9 11 . 68 125 Influence Increases 1556 | . 20 70 62 50 426 928 Destroy 0b10 Robot/C 960 | . 20 60 40 40 260 540 Destroy 0b10 Robot/NC 50 | . . . 5 . 25 20 Destroy Leader 206 | . . 10 2 10 54 130 Allied During Kill 33 | . . . . . 33 . Successful Hack 16 | . . . . . . 16 Disable Machine 105 | . . . . . 30 75 Destroy Structure 81 | . . . . . 9 72 Lose Combat Pursuer 105 | . . . 15 . 15 75 Influence Decreases 1125 | . 20 20 112 50 310 613 Entered New Map 95 | . . . 31 . . 64 Time Decay 760 | . 20 20 81 40 270 329 Lost Part 230 | . . . . 10 . 220 Lost Ally 40 | . . . . . 40 . Squads Dispatched 8 | . . . . . 1 7 Investigation . | . . . . . . . Extermination 4 | . . . . . . 4 Reinforcement 4 | . . . . . 1 3 Assault . | . . . . . . . Garrison . | . . . . . . . Intercept . | . . . . . . . Searches Triggered . | . . . . . . . Construction Impeded 2 | . . . . . . 2 Haulers Reinforced . | . . . . . . . Active Scanning Responses . | . . . . . . . Cargo Convoy Interrupts 1 | . . . . . . 1 Stealth | -11 -10 -10 -9 -9 -8 -7 --------- Run | Yrd Mat Min Mat Min Mat Fac Distress Signals 5 | . . . 1 . 2 2 Communications Jammed . | . . . . . . . Distress Signals . | . . . . . . . Times Spotted 90 | . 3 3 8 2 23 51 Peak Tracking Total 11 | . 2 3 5 2 5 11 Tactical Retreats 6 | . . . 1 . 1 4 Traps | -11 -10 -10 -9 -9 -8 -7 ------- Run | Yrd Mat Min Mat Min Mat Fac Traps Triggered 3 | . . . . . 2 1 Indirectly . | . . . . . . . Trap Hack Attempts . | . . . . . . . Triggered . | . . . . . . . Disarmed . | . . . . . . . Reprogrammed . | . . . . . . . Reused . | . . . . . . . Traps Extracted . | . . . . . . . Installed . | . . . . . . . Triggered . | . . . . . . . Machines | -11 -10 -10 -9 -9 -8 -7 ---------- Run | Yrd Mat Min Mat Min Mat Fac Machines Disabled 7 | . . . . . 2 5 Max in Single Turn 5 | . . . . . 1 5 Machines Repaired . | . . . . . . . Machines Dismantled . | . . . . . . . Machines Sabotaged . | . . . . . . . Overloaded Fab Kills . | . . . . . . . Hacking | -11 -10 -10 -9 -9 -8 -7 --------- Run | Yrd Mat Min Mat Min Mat Fac Machines Accessed 2 | . . . . . . 2 Terminals 1 | . . . . . . 1 Fabricators . | . . . . . . . Repair Stations 1 | . . . . . . 1 Recycling Units . | . . . . . . . Scanalyzers . | . . . . . . . Garrison Access . | . . . . . . . Total Hacks 2 | . . . . . . 2 Successful 2 | . . . . . . 2 Failed . | . . . . . . . Catastrophic . | . . . . . . . Database Lockouts . | . . . . . . . Manual 1 | . . . . . . 1 Terminals 1 | . . . . . . 1 Fabricators . | . . . . . . . Repair Stations 1 | . . . . . . 1 Recycling Units . | . . . . . . . Scanalyzers . | . . . . . . . Garrison Access . | . . . . . . . Terminal Hacks 1 | . . . . . . 1 Zone Layout 1 | . . . . . . 1 Fabricator Hacks . | . . . . . . . Repair Station Hacks 1 | . . . . . . 1 Scan Component 1 | . . . . . . 1 Recycling Unit Hacks . | . . . . . . . Scanalyzer . | . . . . . . . Garrison Access Hacks . | . . . . . . . Unauthorized Hacks . | . . . . . . . Terminals . | . . . . . . . Fabricators . | . . . . . . . Repair Stations . | . . . . . . . Recycling Units . | . . . . . . . Scanalyzers . | . . . . . . . Garrison Access . | . . . . . . . Data Cores Recovered . | . . . . . . . Used . | . . . . . . . Hacking Detections 2 | . . . . . . 2 Full Trace Events . | . . . . . . . Feedback Events . | . . . . . . . Feedback Blocked . | . . . . . . . Robot Schematics Acquired . | . . . . . . . Robots Built . | . . . . . . . Authchips . | . . . . . . . Time . | . . . . . . . Total Robot Build Rating . | . . . . . . . Part Schematics Acquired . | . . . . . . . Parts Built . | . . . . . . . Authchips . | . . . . . . . Time . | . . . . . . . Total Part Build Rating . | . . . . . . . Part Studies Acquired . | . . . . . . . Parts Repaired . | . . . . . . . Time . | . . . . . . . Parts Recycled . | . . . . . . . Recycled Matter . | . . . . . . . Retrieved Matter . | . . . . . . . Retrieved Components . | . . . . . . . Parts Scanalyzed . | . . . . . . . Part Schematics Acquired . | . . . . . . . Parts Damaged . | . . . . . . . Bothacking | -11 -10 -10 -9 -9 -8 -7 ------------ Run | Yrd Mat Min Mat Min Mat Fac Used RIF Installer . | . . . . . . . Robots Hacked . | . . . . . . . Non-combat . | . . . . . . . Combat . | . . . . . . . Robot Hacks Applied . | . . . . . . . Relay Couplers Released . | . . . . . . . Fabnet Peak Effective % . | . . . . . . . Robots Rewired . | . . . . . . . Allies Hacked . | . . . . . . . Hacks Repelled . | . . . . . . . Allies | -11 -10 -10 -9 -9 -8 -7 -------- Run | Yrd Mat Min Mat Min Mat Fac Total Allies 3 | . . . . 3 . . Largest Group 3 | . . . . 3 3 . Highest-Rated Group 40 | . . . . 40 40 . Highest-Rated Ally 16 | . . . . 16 16 . Total Orders . | . . . . . . . Ally Attacks 32 | . . . . . 32 . Total Damage 307 | . . . . . 307 . Kills 7 | . . . . . 7 . Allies Corrupted . | . . . . . . . Allies Melted . | . . . . . . . Intel | -11 -10 -10 -9 -9 -8 -7 ------- Run | Yrd Mat Min Mat Min Mat Fac Active Infowar (turns) 159 | . . . . . . 159 Optics 159 | . . . . . . 159 Robot Analysis Total . | . . . . . . . Derelict Logs Recovered 4 | . . 1 . 3 . . Drone Launches . | . . . . . . . Drone Recoveries . | . . . . . . . Exploration | -11 -10 -10 -9 -9 -8 -7 ------------- Run | Yrd Mat Min Mat Min Mat Fac Turns Passed 5078 | 82 179 210 301 1096 1055 2155 Spaces Moved 2534 | 54 95 112 149 471 476 1177 Core 124 | 14 . . . . 3 107 Treads 2410 | 40 95 112 149 471 473 1070 Legs . | . . . . . . . Wheels . | . . . . . . . Hover . | . . . . . . . Flight . | . . . . . . . Fastest Speed 50 | 50 160 160 160 160 152 50 Average Speed 175 | 131 160 160 160 223 197 154 Slowest Speed 700 | 160 160 160 160 240 700 330 Overloaded Moves . | . . . . . . . Propulsion Burnouts . | . . . . . . . Robots Hopped . | . . . . . . . Potential Cave-ins . | . . . . . . . Cave-ins Triggered . | . . . . . . . Exploration Rate (%) 28 | 4 16 21 16 86 35 24 Regions Visited 6 Branch Regions 2 Pre-discovered Areas 1 | . . . . 1 . . Known Exits Taken 1 | . . . . . 1 . Unknown Exits Taken 5 | 1 1 1 1 1 . . Scrap Searched 3 | . . 1 . 2 . . Spaces Dug . | . . . . . . . Terrain Destroyed 102 | . . . . . 9 93 Melee . | . . . . . . . Projectile 17 | . . . . . 9 8 AOE 85 | . . . . . . 85 Terrain Rammed . | . . . . . . . Walls Destroyed . | . . . . . . . Machines Disabled . | . . . . . . . Actions | -11 -10 -10 -9 -9 -8 -7 --------- Run | Yrd Mat Min Mat Min Mat Fac Total 2867 | 65 104 127 180 494 536 1361 Wait 50 | . . 2 . . 1 47 Move 2528 | 53 94 111 148 470 475 1177 Hop . | . . . . . . . Pick Up 42 | 6 1 4 6 1 8 16 Fast Attach 20 | . . . 2 . 8 10 Attach 22 | 6 . 1 2 1 1 11 Detach 3 | . . 1 . 1 1 . Swap 7 | . . . 2 1 4 . Drop 36 | . . . 4 3 11 18 Fire 153 | . 9 8 16 13 27 80 Melee . | . . . . . . . Ram . | . . . . . . . Kick . | . . . . . . . Crush 6 | . . . . 4 . 2 Escape Stasis . | . . . . . . . Rewire . | . . . . . . . Trap . | . . . . . . . Miscellaneous . | . . . . . . . Route ------- -11/Scrapyard -10/Materials -10/Mines -9/Materials -9/Mines (discovered 2 exits: *Mat x2) -8/Materials (discovered 2 exits: *Fac x2) -7/Factory History --------- Turn | Location | Event 6 | -11/Scrapyard | Discovered new exit (range 16) 83 | -11/Scrapyard | Entered Materials 103 | -10/Materials | Discovered new exit (range 15) 262 | -10/Materials | Entered Mines 312 | -10/Mines | Build established: Mutant 379 | -10/Mines | Found a Scrap Suit stashed away for nefarious purposes 382 | -10/Mines | Found Scrap Suit 388 | -10/Mines | Learned Materials emergency access door positions 425 | -10/Mines | Discovered new exit (range 7) 472 | -10/Mines | Entered Materials 472 | -9/Materials | Evolved 2 slots: Utility x2 671 | -9/Materials | Discovered new exit (range 6) 773 | -9/Materials | Entered Mines 819 | -9/Mines | Met a Derelict bent on vengeance 1100 | -9/Mines | Discovered new exit (range 12) 1114 | -9/Mines | Assisted by bots powering up and referring to "LRC-V3" 1141 | -9/Mines | Learned 2 Materials zone layouts 1455 | -9/Mines | Discovered new exit (range 5) 1869 | -9/Mines | Entered Materials 1869 | -8/Materials | Accompanied by 3 allies 1869 | -8/Materials | Evolved 2 slots: Power x1, Propulsion x1 1870 | -8/Materials | Identified exit to Factory 2866 | -8/Materials | Discovered exit to Factory (range 10) 2924 | -8/Materials | Entered Factory 2924 | -7/Factory | Evolved 2 slots: Utility x1, Weapon x1 3212 | -7/Factory | Build established: Tank 4479 | -7/Factory | Cargo convoy interrupted 4518 | -7/Factory | Lost 3 parts (1p1u1w) 4520 | -7/Factory | Destroyed 9 combat bots 4854 | -7/Factory | Lost 4 parts (1n1u2w) 5013 | -7/Factory | System corruption reached 10% 5023 | -7/Factory | Core integrity fell below 50% 5053 | -7/Factory | Lost 10 parts (2p3n3u2w) 5063 | -7/Factory | Core integrity fell below 20% 5079 | -7/Factory | Destroyed by S-27 Virus with Autogun Last Messages --------------- 04981_ Acquired Arm. Treads. 04996_ System corrupted: Matter fused (-5). 04997_ Shotgun destroyed. 05000_ Med. Treads destroyed. 05003_ Arm. Treads destroyed. 05004_ Slammed into P-70 Sage. 05006_ Particle Gun destroyed. 05011_ Imp. Heat Sink destroyed. 05014_ Power Shielding destroyed. 05014_ Lgt. Nuclear Core destroyed. 05015_ System corrupted: Matter fused (-9). 05015_ Imp. Heat Sink destroyed. 05017_ Lgt. Nuclear Core destroyed. 05022_ Med. Treads destroyed. 05022_ M-28 Smith repairs P-70 Sage Tesla Rifle. 05031_ Connecting with Recycling Unit... 05035_ QJLT7=FXGLQCLF5YZBC/SOC1 05042_ Subcomponent Replicator disabled. 05053_ SO=X MHI